{"text_format":"1","workbook":"xlsx","n_sheets":8,"sheets":["База 1","База 2","Крајњи документ","Улазни подаци","Дијаграм тока","Сценарији","ODGOVOR","Tabela uslova"],"not_rendered":{"charts":0,"images":0,"macros":1,"external_links":0,"defined_names":15,"comments":1,"pivot_tables":0},"unopened":[],"bounds":{"document_bytes":16777216,"sheet_cells":100000,"rows_first":2000,"rows_last":500,"rows_between":2000,"halvings":0,"cell_chars":16384,"cell_head_chars":4096},"cells_cut":0,"cells_raw":0,"read":"whole","date_system":"1900"}

{"sheet":"База 1","index":0,"n_rows":98,"n_cols":7,"rows_kept":98,"cut":false,"hidden":false,"merged":[]}
[null,"ДОКУМЕНТИ"]
[1,"Захтјев за издавање локацијских услова","Одјељење за просторно уређење"]
[2,"Копија катастарског плана","РУГИПП ПЈ Зворник (Катастар)",15]
[4,"Комунална сагласност на локацију","АД \"Водовод и комуналије\"",0]
[5,"Електроенергетска сагласност на локацију","Електродистрибуција РЈ Зворник",0]
[6,"Телекомуникациона сагласност на локацију","Телекомуникације РС, АД Бања Лука",0]
[7,"Противпожарна сагласност на локацију","Полицијска управа Зворник",0]
[9,"Водне смјернице","ЈУ \"Воде Српске\""]
[10,"Изјава суседа предметне парцеле дата на планирану изградњу","Одјељење за просторно уређење"]
[11,"Урбанистичко-технички услови","Одјељење за просторно уређење"]
[12,"Стручно мишљење и урбанистичко- технички услови","Одјељење за просторно уређење"]
[13,"Накнада за вођење поступка","Градска управа града Зворника",72,54,45,20]
[14,"Административна такса","Градска управа града Зворника",20]
[null,"Локацијски услови","Одјељење за просторно уређење"]
[]
[1,"Захтјев за издавање одобрења за грађење","Одјељење за просторно уређење"]
[2,"Посједовни лист","РУГИПП ПЈ Зворник (Катастар)",0]
[4,"Земљишнокњижни издатак","РУГИПП ПЈ Зворник (Катастар)",15]
[5,"Потврда о извршеној идентификацији парцела","РУГИПП ПЈ Зворник (Катастар)",15]
[6,"Лист непокретности","РУГИПП ПЈ Зворник (Катастар)",35]
[7,"Главни пројекат","Овлаштена пројектанстра кућа",6]
[8,"Ревизија главног пројекта","Овлаштена пројектанстра кућа",50]
[9,"Комунална сагласност на пројекат","АД \"Водовод и комуналије\"",0]
[10,"Електроенергетска сагласност на пројекат","Електродистрибуција РЈ Зворник",0]
[11,"Телекомуникациона сагласност на пројекат","Телекомуникације РС, АД Бања Лука",0]
[12,"Противпожарна сагласност на пројекат","Полицијска управа Зворник",0]
[13,"Еколошка сагласност на пројекат","Овлаштена пројектанстра кућа",0]
[14,"Водна сагласност на пројекат","ЈУ \"Воде Српске\"",5]
[15,"Сагласност Министарства здравља и социјалне заштите Републике Српске"]
[null,"Путна сагласност"]
[16,"Пољопривредна сагласност","Одјељење за пољопривреду"]
[17,"Рјешење о висини накнаде на име ренте и уређења Г.Г.З.","Одјељење за привредно стамбено",25]
[12,"Административна такса","Градска управа града Зворника",20]
[18,"Рјешење о издавању одобрења за грађење","Одјељење за просторно уређење"]
[]
[1,"Захтјев за технички преглед и издавање одобрења за употребу објекта","Одјељење за просторно уређење"]
[2,"Пројекат изведеног стања","Овлаштена пројектанстра кућа",100]
[3,"Завршни извјештај извођача радова","Овлаштена пројектанстра кућа",256]
[4,"Завршни извјештај надзорног органа","Овлаштена пројектанстра кућа",265]
[5,"Потврда о извршеном геодетском снимању",null,25]
[6,"Противпожарна сагласност на изведене мјере заштите од пожара","Полицијска управа Зворник",45]
[7,"Стручни налаз о прегледу и испитивању електроенергетских инсталација","Овлаштена пројектанстра кућа",98]
[8,"Сагласност Министарства здравља и социјалне заштите Републике Српске"]
[9,"Енергетски цертификат зграде","Овлаштена пројектанстра кућа",126]
[10,"Потврда о плаћеној накнади за прикључење на водоводну мрежу","АД \"Водовод и комуналије\"",365]
[11,"Административна такса","Градска управа града Зворника",20]
[12,"Рјешење о издавању употребне дозволе","Одјељење за просторно уређење"]
[]
[]
[null,"Захтјев за издавање увјерења о непромењености локацијских услова","Одјељење за просторно уређење"]
[null,"Захтјев за издавање накнадних локацијских услова","Одјељење за просторно уређење"]
[null,"Захтјев за издавање накнадног одобрења за изграђени објекат","Одјељење за просторно уређење"]
[null,"Захтјев за легализацију објекта","Одјељење за просторно уређење"]
[null,"Захтјев за уклањање објекта","Одјељење за просторно уређење"]
[null,"Захтјев за утврђивање легалности објекта","Одјељење за просторно уређење"]
[null,"Захтјев за исколчавање објекта","Одјељење за просторно уређење"]
[null,"Накнадни локацијски услови","Одјељење за просторно уређење"]
[null,"Рјешење о издавању накнадне грађевинске дозволе","Одјељење за просторно уређење"]
[null,"Рјешење о издавању накнадне употребне дозволе","Одјељење за просторно уређење"]
[null,"Рјешење о уклањању објекта","Одјељење за просторно уређење"]
[null,"Рјешење о утврђивању легалности објекта","Одјељење за просторно уређење"]
[null,"Записник о исколчавању објекта","Одјељење за просторно уређење"]
[null,"Извод из важећег просторног документа","Одјељење за просторно уређење"]
[]
[]
[null,"Тип објекта"]
[null,"Помоћни"]
[null,"Стамбени"]
[null,"Стамбено-пословни"]
[null,"Пословни"]
[null,"Привредни"]
[]
[null,"У обухвату"]
[null,"Регулациони план"]
[null,"План парцелације Улица"]
[null,"План парцелације Економија"]
[]
[null,"Ван обухвата"]
[null,"Просторни план Општине Зворник"]
[null,"Урбанистички план"]
[]
[null,"Зоне - Правилник о општим правилима урбанистичке регулације и парцелације",null,"Заузетост","Изграђеност","Спратност"]
[null,"зона кућа за одмор",null,0.2,0.3,"Пр + Пк"]
[null,"сеоска зона",null,0.3,0.5,"Пр + Пк"]
[null,"зона породичне градње",null,0.4,1,"Пр + 1 + Пк"]
[null,"стамбена зона са два или више типова стамбене изградње",null,0.5,1.5,"Пр + 2"]
[null,"мјешовита зона са два или више типова нестамбене градње",null,0.6,1.7,"Пр + 1 + Пк"]
[null,"зона урбане стамбене и општа зона већих густина",null,0.7,2.5,"Пр + 2 + Пк"]
[null,"централна урбана и пословна зона",null,0.8,4.2,"Пр + 4 "]
[null,"привредна и индустријска зона",null,0.6,2.1,"Пр + 2 + Пк"]
[]
[null,"Да/Не"]
[null,"Да"]
[null,"Не"]
[]
[null,"Стање објекта:"]
[null,"Изграђен"]
[null,"Неизграђен"]

{"sheet":"База 2","index":1,"n_rows":32,"n_cols":5,"rows_kept":32,"cut":false,"hidden":false,"merged":[[28,1,28,3],[29,1,29,3],[30,1,30,3],[31,1,31,3]]}
["Р.Б","Катастарска општина","Усклађен"]
[1,"Витиница","-"]
[2,"Глумина ","-"]
[3,"Годуш","-"]
[4,"Грбавци","-"]
[5,"Дрињача","-"]
[6,"Зворник","-"]
[7,"Зворник град","+"]
[8,"Зелиње","-"]
[9,"Каменица","-"]
[10,"Козлук","+"]
[11,"Крижевићи","-"]
[12,"Локањ","-"]
[13,"Малешић","-"]
[14,"Међеђа","-"]
[15,"Незук","-"]
[16,"Петковци","-"]
[17,"Пилица","-"]
[18,"Растошница","-"]
[19,"Роћевић","-"]
[20,"Сапна","-"]
[21,"Скочић","-"]
[22,"Табанци","±"]
[23,"Тршић","-"]
[24,"Челопек","-","дио ће бити ускоро"]
[25,"Шепак","+"]
[26,"Шетићи","-"]
[]
[1,"Копија катастарског плана",null,null,15]
[2,"Земљишнокњижни извадак",null,null,15]
[3,"Потврда о извршеној идентификацији парцела",null,null,15]
[4,"Лист непокретности",null,null,35]

{"sheet":"Крајњи документ","index":2,"n_rows":33,"n_cols":12,"rows_kept":33,"cut":false,"hidden":false,"merged":[[11,5,11,6],[12,5,12,6],[13,5,13,6],[17,0,17,1],[18,0,18,1],[11,0,11,1],[12,0,12,1],[13,0,13,1],[4,0,4,1],[4,5,4,6],[8,5,8,6],[9,5,9,6],[10,5,10,6],[8,0,8,1],[9,0,9,1],[10,0,10,1],[22,0,22,9],[33,1,33,8],[18,5,18,8],[17,5,17,8],[32,1,32,7],[30,1,30,5],[31,1,31,5],[25,1,25,5],[26,1,26,5],[27,1,27,5],[28,1,28,5],[29,1,29,5],[24,1,24,5],[19,0,19,1],[20,0,20,1]]}
["ГРАД ЗВОРНИК"]
["ГРАДСКА УПРАВА ГРАДА ЗВОРНИКА"]
["ОДЈЕЉЕЊЕ ЗА ПРОСТОРНО УРЕЂЕЊЕ"]
[]
["Подносилац захтјева:",null,null,null,null,"Петар Петровић",null,null,null,null,null,"Улазни подаци"]
[]
["*","ПОЛАЗНИ ПОДАЦИ"]
[]
["Катастарска општина:",null,null,null,null,"КО. Зворник град"]
["Број парцеле:",null,null,null,null,"256/1"]
["Површина парцеле:",null,null,null,null,150]
["Власник:"]
["Тип објекта:",null,null,null,null,"Привредни"]
["Cпроведбени план:",null,null,null,null,"Не"]
[]
["*","ВАЖЕЋИ ПРОСТОРНИ ПЛАН"]
[]
["Просторни план:",null,null,null,null,"Просторни план Општине Зворник"]
["Зона намене:",null,{"$f":"VLOOKUP(F19,Зоне_1,3,0)","v":0.4},{"$f":"VLOOKUP(F19,Зоне_1,4,0)","v":1},{"$f":"VLOOKUP(F19,Зоне_1,5,0)","v":"Пр + 1 + Пк"},"зона породичне градње"]
["Мах. бруто повр.основе:",null,null,null,null,{"$f":"C19*F11","v":60}]
["Мах. бруто површина:",null,null,{"$f":"F11*D19/F20","v":2.5},null,{"$f":"D19*F11","v":150},null,{"$f":"E19","v":"Пр + 1 + Пк"}]
[]
["ПОТРЕБНА ДОКУМЕНТАЦИЈА И ОКВИРНИ ТРОШКОВИ ЗА ДОБИЈАЊЕ ЛОКАЦИЈСКИХ УСЛОВА"]
[]
[null,"Административна такса",null,null,null,null,null,{"$f":"VLOOKUP(B25,Документи_цене,2,0)","v":"Градска управа града Зворника"},{"$f":"VLOOKUP(B25,Документи_цене,3,0)","v":20},null,null,"Тражени подаци"]
[null,"Накнада за вођење поступка",null,null,null,null,null,"Градска управа града Зворника",72,null,null,"Одрађено је преко листа, манули одабир документа који би из базе повлачио цену коштања и орган који издаје документ"]
[null,"Извод из катастарског плана",null,null,null,null,null,{"$error":"#N/A"},{"$error":"#N/A"},null,null,"Крајњи циљ је да приказ резултата не буде мануелни него да се приликом одабира улазних подата аутоматски бирају потребни документи и као циљ даје укупан трошак процедуре"]
[null,"Земљишнокњижни издатак",null,null,null,null,null,"РУГИПП ПЈ Зворник (Катастар)",15]
[null,"Комунална сагласност на локацију",null,null,null,null,null,"АД \"Водовод и комуналије\"",0]
[null,"Електроенергетска сагласност на локацију",null,null,null,null,null,"Електродистрибуција РЈ Зворник",0]
[null,"Телекомуникациона сагласност на локацију",null,null,null,null,null,"Телекомуникације РС, АД Бања Лука",0]
[null,"Захтјев за утврђивање легалности објекта",null,null,null,null,null,"Одјељење за просторно уређење",0]
[null,"Укупни оријентациони трошкови прибављања ЛОКАЦИЈСКИХ УСЛОВА:",null,null,null,null,null,null,{"$f":"SUM(I25:I32)","v":{"$error":"#N/A"}}]

{"sheet":"Улазни подаци","index":3,"n_rows":22,"n_cols":7,"rows_kept":22,"cut":false,"hidden":false,"merged":[]}
[]
[]
[null,null,"ПАРЦЕЛА:"]
[null,null,"Катастарска општина:","Локањ",null,null,"Листе"]
[null,null,"Број парцеле:",null,null,null,"Мануелни улаз"]
[null,null,"Површина парцеле:"]
[null,null,"Усаглашеност операта:",{"$f":"IF(OR(D4=\"Зворник град\",D4=\"Шепак\",D4=\"Козлук\"),\"Да\",\"Не\")","v":"Не"}]
[null,null,"Излазак на пут:","Локални"]
[null,null,"Класа земљишта:"]
[null,null,"Приход:",5]
[null,null,"Власник:","Да"]
[]
[]
[null,null,"ОБЈЕКАТ:"]
[null,null,"Стање објекта:","Изграђен"]
[null,null,"Cпроведбени план:","Да"]
[null,null,"Тип објекта:","Стамбено-пословни"]
[null,null,"Просторни план:","Просторни план Општине Зворник"]
[null,null,"Зона намене:","централна урбана и пословна зона"]
[null,null,"Мах. бруто повр.основе:"]
[null,null,"Мах. бруто површина:"]
[null,null,"Пројектована бруто површина:",126]

{"sheet":"Дијаграм тока","index":4,"n_rows":47,"n_cols":8,"rows_kept":47,"cut":false,"hidden":false,"merged":[[46,2,46,5],[6,2,6,5],[8,2,8,5],[34,2,34,5],[35,3,35,5],[37,3,37,5],[17,2,17,5],[19,2,19,5],[20,2,20,5],[11,1,11,5],[16,4,16,5],[12,1,12,5],[13,2,13,5],[14,3,14,5],[15,3,15,5],[21,1,21,5],[10,1,10,5],[1,1,1,5],[3,2,3,5],[4,2,4,5],[2,1,2,5],[5,1,5,5],[7,1,7,5],[33,1,33,5],[18,1,18,5],[22,1,22,5],[23,2,23,5],[24,3,24,5],[25,3,25,5],[32,1,32,5],[28,3,28,5],[31,3,31,5],[30,3,30,5],[26,4,26,5],[27,2,27,5],[29,2,29,5]]}
[]
[null,"Не изграђен објекат"]
["1.","Захтјев за издавање локацијских услова"]
[null,"1.1.","Урбанистичко-технички услови",null,null,null,"ИС400","Индивидуално стамбени и стамбено-пословни до 400 м2"]
[null,"1.2.","Локацијски услови",null,null,null,"ОО","Остали објекти"]
["2.","Захтјев за издавања одобрења за грађење"]
[null,"2.1.","Рјешење о издавању одобрења за грађење"]
["3.","Захтјев за технички преглед и издавање одобрења за употребу објекта"]
[null,"3.1.","Рјешење о издавању употребне дозволе"]
[]
[null,"Изграђен објекат"]
["A","Парцела државна",null,null,null,null,"ПД"]
["1.","Захтјев за издавање накнадних локацијских услова"]
[null,"1.1.","Захтјев за легализацију објекта",null,null,null,"ИС400"]
[null,null,"1.1.a","Рјешење о издавању накнадне грађевинске и употребне дозволе",null,null,"ЗА"]
[null,null,"1.1.б","Накнадни урбанистичко-технички услови",null,null,"НЗА"]
[null,null,null,null,"Ка 2."]
[null,"1.2.","Накнадни локацијски услови"]
["2.","Захтјев за издавање накнадног одобрења за изграђени објекат",null,null,null,null,"ОО"]
[null,"2.1.","Рјешење о издавању накнадне грађевинске дозволе"]
[null,"2.2.","Рјешење о издавању употребне дозволе"]
["Б","Парцела приватна - усклађено",null,null,null,null,"ППУ"]
["1.","Усклађена парцела у катастру и грунту"]
[null,"1.1.","Захтјев за легализацију објекта",null,null,null,"ИС400"]
[null,null,"1.1.а.","Рјешење о издавању накнадне грађевинске и употребне дозволе"]
[null,null,"1.1.б.","Накнадни урбанистичко-технички услови"]
[null,null,null,null,"Ка 1.3"]
[null,"1.2.","Захтјев за издавање накнадних локацијских услова"]
[null,null,"1.2.1.","Накнадни локацијски услови"]
[null,"1.3.","Захтјев за издавање накнадног одобрења за изграђени објекат",null,null,null,"ОО"]
[null,null,"1.3.1.","Рјешење о издавању накнадне грађевинске дозволе"]
[null,null,"1.3.2.","Рјешење о издавању употребне дозволе"]
["В","Парцела приватна - не усклађено",null,null,null,null,"ППНУ"]
[2,"Не усклађена парцела у катастру и грунту"]
[null,"2.3.","Не усклађена парцела у катастру и грунту"]
[null,null,"2.3.1.","Захтјев за легализацију објекта",null,null,"ИС400","Накнадни урбанистичко-технички услови"]
[null,null,null,"2.3.1.1.","Рјешење о привременом задржавању",null,null,"Накнадни локацијски услови"]
[null,null,"2.3.2.","Захтјев за издавање накнадних локацијских услова"]
[]
[]
[]
[null,null,null,null,null,null,null,"Рјешење о привременом задржавању"]
[null,null,null,null,null,null,null,"Рјешење о издавању накнадног одобрења за грађење"]
[]
[]
[]
[null,null,"Захтјев за легализацију објекта"]

{"sheet":"Сценарији","index":5,"n_rows":63,"n_cols":46,"rows_kept":63,"cut":false,"hidden":false,"merged":[[58,1,58,2],[59,1,59,2],[60,1,60,2],[61,1,61,2],[62,1,62,2],[42,1,42,2],[57,1,57,2],[46,1,46,2],[47,1,47,2],[48,1,48,2],[49,1,49,2],[50,1,50,2],[51,1,51,2],[52,1,52,2],[53,1,53,2],[54,1,54,2],[55,1,55,2],[56,1,56,2],[30,1,30,2],[33,1,33,2],[40,1,40,2],[41,1,41,2],[34,1,34,2],[35,1,35,2],[36,1,36,2],[38,1,38,2],[37,1,37,2],[32,1,32,2],[39,1,39,2],[31,1,31,2],[29,1,29,2],[23,1,23,2],[7,1,7,2],[8,1,8,2],[12,1,12,2],[13,1,13,2],[16,1,16,2],[18,1,18,2],[9,1,9,2],[10,1,10,2],[11,1,11,2],[14,1,14,2],[15,1,15,2],[19,1,19,2],[17,1,17,2],[24,1,24,2],[20,1,20,2],[21,1,21,2],[22,1,22,2],[28,1,28,2],[25,1,25,2],[26,1,26,2],[27,1,27,2]]}
[1,"Власник:","Да","Да","Не",null,null,null,1.1000000000000001,1.1000000000000001,1.1000000000000001,1.1000000000000001]
[2,"Стање објекта:","Не изграђен","Не изграђен","Изграђен",null,null,null,2.1,2.2000000000000002,2.1,2.1]
[3,"Cпроведбени план:","Не","Да","Не",null,null,null,3.1,3.1,3.2,3.1]
[4,"Пројектована бруто површина:",126,null,"200 - 400","> 400",null,null,4.0999999999999996,4.0999999999999996,4.0999999999999996,4.2]
[5,"Прикључак на пут:",null,"Локални","Градски","Републички",null,null,5.0999999999999996,5.0999999999999996,5.0999999999999996,5.0999999999999996]
[6,"Тип објекта:","Стамбено-пословни","Помоћни","Стамбени","Ст.пословни","Пословни","Привредни",6.1,6.1,6.1,6.1]
[]
[null,"ЛОКАЦИЈСКИ УСЛОВИ"]
[1,"Захтјев за локацијским условима",null,null,null,null,null,null,"+","+","+","+","+","+","+","+","+","+","+","+","+","+","+","+","+","+","+","+","+","+","+","+","+","+","+","+","+","+","+","+","+","+","+","+","+","+"]
[2,"Захтјев за издавање накнадних локацијских услова"]
[3,"Захтјев за легализацију објекта"]
[4,"Захтјев за утврђивање легалности објекта"]
[5,"Административна такса"]
[6,"Накнада за трошкове поступка"]
[7,"Стручно мишљење и урбанистичко-технички услови"]
[8,"Урбанистичко-технички услови"]
[9,"Копија катастарског плана"]
[10,"Путна сагласност"]
[11,"Комунална сагласност на локацију"]
[12,"Електроенергетска сагласност на локацију"]
[null,"Гасна сагласност А.Д. Зворник Стана"]
[13,"Противпожарна сагласност на локацију"]
[14,"Водне смјернице"]
[]
[null,"ГРАЂЕВИНСКА ДОЗВОЛА"]
[1,"Лист непокретности"]
[2,"Посједовни лист",null,null,null,null,null,null,"+","+","+","+","+","+","+","+","+","+","+","+","+","+","+","+","+","+","+","+","+","+","+","+","+","+","+","+","+","+","+","+","+","+","+","+","+","+"]
[3,"Земљишнокњижни издатак"]
[4,"Потврда о извршеној идентификацији парцела"]
[5,"Главни пројекат"]
[6,"Ревизија главног пројекта"]
[7,"Пољопривредна сагласност"]
[8,"Путна сагласност"]
[9,"Комунална сагласност на пројекат"]
[10,"Електроенергетска сагласност на пројекат"]
[11,"Телекомуникациона сагласност на пројекат"]
[12,"Противпожарна сагласност на пројекат"]
[14,"Водна сагласност на пројекат"]
[13,"Еколошка сагласност на пројекат"]
[15,"Сагласност Министарства здравља и социјалне заштите Републике Српске"]
[16,"Рјешење о висини накнаде на име ренте и уређења Г.Г.З."]
[9,"Доказ о плаћеним таксама"]
[10]
[]
[]
[]
[null,"Посједовни лист"]
[null,"Земљишнокњижни издатак"]
[null,"Потврда о извршеној идентификацији парцела"]
[null,"Лист непокретности"]
[null,"Главни пројекат"]
[null,"Ревизија главног пројекта"]
[null,"Комунална сагласност на пројекат"]
[null,"Електроенергетска сагласност на пројекат"]
[null,"Телекомуникациона сагласност на пројекат"]
[null,"Противпожарна сагласност на пројекат"]
[null,"Еколошка сагласност на пројекат"]
[null,"Водна сагласност на пројекат"]
[null,"Сагласност Министарства здравља и социјалне заштите Републике Српске"]
[null,"Путна сагласност"]
[null,"Пољопривредна сагласност"]
[null,"Рјешење о висини накнаде на име ренте и уређења Г.Г.З."]
[null,"Административна такса"]

{"sheet":"ODGOVOR","index":6,"n_rows":69,"n_cols":22,"rows_kept":69,"cut":false,"hidden":false,"merged":[[61,21,67,21],[47,0,47,17],[49,1,49,2],[49,3,49,4],[49,5,49,6],[49,7,49,9],[49,10,49,12],[49,13,49,17],[24,0,24,17],[0,0,0,17],[26,1,26,2],[26,3,26,4],[26,5,26,6],[26,7,26,9],[26,10,26,12],[26,13,26,17],[2,1,2,2],[2,3,2,4],[2,5,2,6],[2,7,2,9],[2,10,2,12],[2,13,2,17]]}
["Varijanta 1: Vlasnik parce / Neizgrađen objekt / U obuhvatu plana / Površina objekta od 200 do 400 m2 / Izlazak parcele na lokalni put / Pomoćni objekat"]
[]
[null,"Vlasnik",null,"Izgrađen",null,"Plan",null,"Površina",null,null,"Put",null,null,"Objekat"]
[null,"Da ","Ne","Izgrađen","Ne izgrađen","Da","Ne","Do 200","200 do 400","Preko 400","Lokalni","Gradski","Republički","Pomočni","Stambeni","ST-PO","Poslovni","Privredni",null,null,null,"Potrebno ja da se identifikovane dokumenti sortiraju i ubace na polaznu karticu \"Крајњи документ\" - žuto,a iz kartice \"База 1\" bi se dopunjavale kolone sa podacim ko izdaje dokument i koliko košta."]
["PODATAK IZ POČETNIH USLOVA",1,0,0,1,0,1,0,1,0,1,0,0,1,0,0,0,0,null,null,null,"TRAŽENI IZLAZNI PODACI - varijanta 1"]
["Захтјев за локацијским условима",1,1,1,1,1,1,1,1,1,1,1,1,1,1,1,1,1,{"$f":"B6*C6*D6*E6*F6*G6*H6*I6*J6*K6*L6*M6*N6*O6*P6*Q6*R6","v":1},{"$f":"S6","v":1},{"$f":"IF(T6=1,A6,\"\")","v":"Захтјев за локацијским условима"},"Захтјев за локацијским условима"]
["Захтјев за издавање накнадних локацијских услова",1,1,1,1,1,1,1,1,1,1,1,1,1,1,1,1,1,{"$f":"B7*C7*D7*E7*F7*G7*H7*I7*J7*K7*L7*M7*N7*O7*P7*Q7*R7","v":1},{"$f":"S7","v":1},{"$f":"IF(T7=1,A7,\"\")","v":"Захтјев за издавање накнадних локацијских услова"},"Захтјев за издавање накнадних локацијских услова"]
["Захтјев за легализацију објекта",1,1,1,1,1,1,1,1,1,1,1,1,1,1,1,1,1,1,1,"Захтјев за легализацију објекта","Захтјев за легализацију објекта"]
["Захтјев за утврђивање легалности објекта",1,1,1,1,1,1,1,1,1,1,1,1,1,1,1,1,1,1,1,"Захтјев за утврђивање легалности објекта","Захтјев за утврђивање легалности објекта"]
["Административна такса",1,1,1,1,1,1,1,1,1,1,1,1,1,1,1,1,1,1,1,"Административна такса","Административна такса"]
["Накнада за трошкове поступка",1,1,1,1,1,1,1,1,1,1,1,1,1,1,1,1,1,1,1,"Накнада за трошкове поступка","Накнада за трошкове поступка"]
["Копија катастарског плана",1,1,1,1,1,1,1,1,1,1,1,1,1,1,1,1,1,{"$f":"B12*C12*D12*E12*F12*G12*H12*I12*J12*K12*L12*M12*N12*O12*P12*Q12*R12","v":1},{"$f":"S12","v":1},{"$f":"IF(T12=1,A12,\"\")","v":"Копија катастарског плана"},"Копија катастарског плана"]
["Стручно мишљење и урбанистичко-технички услови",1,1,1,1,1,1,1,1,1,1,1,1,1,1,1,1,1,1,{"$f":"S13*G22","v":1},"Стручно мишљење и урбанистичко-технички услови","Стручно мишљење и урбанистичко-технички услови"]
["Урбанистичко-технички услови",1,1,1,1,1,1,1,1,1,1,1,1,1,1,1,1,1,{"$f":"B14*C14*D14*E14*F14*G14*H14*I14*J14*K14*L14*M14*N14*O14*P14*Q14*R14","v":1},{"$f":"S14*F22","v":0},{"$f":"IF(T14=1,A14,\"\")","v":""},"Комунална сагласност на локацију"]
["Путна сагласност локална",1,1,1,1,1,1,1,1,1,1,1,1,1,1,1,1,1,1,{"$f":"S15*L22","v":0},"","Електроенергетска сагласност на локацију"]
["Путна сагласност републичка",1,1,1,1,1,1,1,1,1,1,1,1,1,1,1,1,1,1,{"$f":"S16*M22","v":0},"","Телекомуникациона сагласност"]
["Комунална сагласност на локацију",1,1,1,1,1,1,1,1,1,1,1,1,1,1,1,1,1,1,{"$f":"S17","v":1},"Комунална сагласност на локацију"]
["Електроенергетска сагласност на локацију",1,1,1,1,1,1,1,1,1,1,1,1,1,1,1,1,1,1,1,"Електроенергетска сагласност на локацију"]
["Телекомуникациона сагласност",1,1,1,1,1,1,1,1,1,1,1,1,1,1,1,1,1,1,1,"Телекомуникациона сагласност"]
["Противпожарна сагласност на локацију",1,1,1,1,1,1,1,1,1,1,1,1,1,1,1,1,1,1,{"$f":"S20*P22+S20*Q22+S20*R22","v":0},""]
["Водне смјернице",1,1,1,1,1,1,1,1,1,1,1,1,1,1,1,1,1,1,{"$f":"S21*P22+S21*Q22+S21*R22","v":0},""]
[null,{"$f":"B6*B7*B8*B9*B10*B11*B13*B14*B12*B15*B17*B18*B19*B20*B21*B5","v":1},0,0,1,0,1,0,1,0,1,0,0,1,0,0,0,0]
[]
[]
["Varijanta 2: Vlasnik parce / Neizgrađen objekt / Nije u obuhvatu plana / Površina objekta preko 400 m2 / Izlazak parcele na gradski put / Privredni objekat"]
[]
[null,"Vlasnik",null,"Izgrađen",null,"Plan",null,"Površina",null,null,"Put",null,null,"Objekat"]
[null,"Da ","Ne","Izgrađen","Ne izgrađen","Da","Ne","Do 200","200 do 400","Preko 400","Lokalni","Gradski","Republički","Pomočni","Stambeni","ST-PO","Poslovni","Privredni",null,null,null,"Potrebno ja da se identifikovane dokumenti sortiraju i ubace na polaznu karticu \"Крајњи документ\" - žuto,a iz kartice \"База 1\" bi se dopunjavale kolone sa podacim ko izdaje dokument i koliko košta."]
["PODATAK IZ POČETNIH USLOVA",1,0,0,1,0,1,0,0,1,0,1,0,0,0,0,0,1,null,null,null,"TRAŽENI IZLAZNI PODACI - varijanta 2"]
["Захтјев за локацијским условима",1,1,1,1,1,1,1,1,1,1,1,1,1,1,1,1,1,{"$f":"B30*C30*D30*E30*F30*G30*H30*I30*J30*K30*L30*M30*N30*O30*P30*Q30*R30","v":1},{"$f":"S30","v":1},{"$f":"IF(T30=1,A30,\"\")","v":"Захтјев за локацијским условима"},"Захтјев за локацијским условима"]
["Захтјев за издавање накнадних локацијских услова",1,1,1,1,1,1,1,1,1,1,1,1,1,1,1,1,1,{"$f":"B31*C31*D31*E31*F31*G31*H31*I31*J31*K31*L31*M31*N31*O31*P31*Q31*R31","v":1},{"$f":"S31","v":1},{"$f":"IF(T31=1,A31,\"\")","v":"Захтјев за издавање накнадних локацијских услова"},"Захтјев за издавање накнадних локацијских услова"]
["Захтјев за легализацију објекта",1,1,1,1,1,1,1,1,1,1,1,1,1,1,1,1,1,1,1,"Захтјев за легализацију објекта","Захтјев за легализацију објекта"]
["Захтјев за утврђивање легалности објекта",1,1,1,1,1,1,1,1,1,1,1,1,1,1,1,1,1,1,1,"Захтјев за утврђивање легалности објекта","Захтјев за утврђивање легалности објекта"]
["Административна такса",1,1,1,1,1,1,1,1,1,1,1,1,1,1,1,1,1,1,1,"Административна такса","Административна такса"]
["Накнада за трошкове поступка",1,1,1,1,1,1,1,1,1,1,1,1,1,1,1,1,1,1,1,"Накнада за трошкове поступка","Накнада за трошкове поступка"]
["Копија катастарског плана",1,1,1,1,1,1,1,1,1,1,1,1,1,1,1,1,1,{"$f":"B36*C36*D36*E36*F36*G36*H36*I36*J36*K36*L36*M36*N36*O36*P36*Q36*R36","v":1},{"$f":"S36","v":1},{"$f":"IF(T36=1,A36,\"\")","v":"Копија катастарског плана"},"Копија катастарског плана"]
["Стручно мишљење и урбанистичко-технички услови",1,1,1,1,1,1,1,1,1,1,1,1,1,1,1,1,1,{"$f":"B37*C37*D37*E37*F37*G37*H37*I37*J37*K37*L37*M37*N37*O37*P37*Q37*R37","v":1},{"$f":"S37*G46","v":1},{"$f":"IF(T37=1,A37,\"\")","v":"Стручно мишљење и урбанистичко-технички услови"},"Стручно мишљење и урбанистичко-технички услови"]
["Урбанистичко-технички услови",1,1,1,1,1,1,1,1,1,1,1,1,1,1,1,1,1,{"$f":"B38*C38*D38*E38*F38*G38*H38*I38*J38*K38*L38*M38*N38*O38*P38*Q38*R38","v":1},{"$f":"S38*F46","v":0},{"$f":"IF(T38=1,A38,\"\")","v":""},"Путна сагласност локална"]
["Путна сагласност локална",1,1,1,1,1,1,1,1,1,1,1,1,1,1,1,1,1,{"$f":"B39*C39*D39*E39*F39*G39*H39*I39*J39*K39*L39*M39*N39*O39*P39*Q39*R39","v":1},{"$f":"S39*L46","v":1},{"$f":"IF(T39=1,A39,\"\")","v":"Путна сагласност локална"},"Комунална сагласност на локацију"]
["Путна сагласност републичка",1,1,1,1,1,1,1,1,1,1,1,1,1,1,1,1,1,1,{"$f":"S40*M46","v":0},"","Електроенергетска сагласност на локацију"]
["Комунална сагласност на локацију",1,1,1,1,1,1,1,1,1,1,1,1,1,1,1,1,1,1,{"$f":"S41","v":1},"Комунална сагласност на локацију","Телекомуникациона сагласност"]
["Електроенергетска сагласност на локацију",1,1,1,1,1,1,1,1,1,1,1,1,1,1,1,1,1,1,1,"Електроенергетска сагласност на локацију","Противпожарна сагласност на локацију"]
["Телекомуникациона сагласност",1,1,1,1,1,1,1,1,1,1,1,1,1,1,1,1,1,1,1,"Телекомуникациона сагласност","Водне смјернице"]
["Противпожарна сагласност на локацију",1,1,1,1,1,1,1,1,1,1,1,1,1,1,1,1,1,1,{"$f":"S44*P46+S44*Q46+S44*R46","v":1},"Противпожарна сагласност на локацију"]
["Водне смјернице",1,1,1,1,1,1,1,1,1,1,1,1,1,1,1,1,1,1,{"$f":"S45*P46+S45*Q46+S45*R46","v":1},"Водне смјернице"]
[null,{"$f":"B30*B31*B32*B33*B34*B35*B37*B38*B36*B39*B41*B42*B43*B44*B45*B29","v":1},0,0,1,0,1,0,0,1,0,1,0,0,0,0,0,1]
[]
["Varijanta 3: Vlasnik parcele / Neizgrađen objekt / U obuhvatu plana / Površina objekta do 200 m2 / Izlazak parcele na gradski put / Poslovni objekat"]
[]
[null,"Vlasnik",null,"Izgrađen",null,"Plan",null,"Površina",null,null,"Put",null,null,"Objekat"]
[null,"Da ","Ne","Izgrađen","Ne izgrađen","Da","Ne","Do 200","200 do 400","Preko 400","Lokalni","Gradski","Republički","Pomočni","Stambeni","ST-PO","Poslovni","Privredni",null,null,null,"Potrebno ja da se identifikovane dokumenti sortiraju i ubace na polaznu karticu \"Крајњи документ\" - žuto,a iz kartice \"База 1\" bi se dopunjavale kolone sa podacim ko izdaje dokument i koliko košta."]
["PODATAK IZ POČETNIH USLOVA",1,0,0,1,1,0,1,0,0,0,1,0,0,0,0,1,0,null,null,null,"TRAŽENI IZLAZNI PODACI - varijanta 3"]
["Захтјев за локацијским условима",1,1,1,1,1,1,1,1,1,1,1,1,1,1,1,1,1,{"$f":"B53*C53*D53*E53*F53*G53*H53*I53*J53*K53*L53*M53*N53*O53*P53*Q53*R53","v":1},{"$f":"S53","v":1},{"$f":"IF(T53=1,A53,\"\")","v":"Захтјев за локацијским условима"},"Захтјев за локацијским условима"]
["Захтјев за издавање накнадних локацијских услова",1,1,1,1,1,1,1,1,1,1,1,1,1,1,1,1,1,{"$f":"B54*C54*D54*E54*F54*G54*H54*I54*J54*K54*L54*M54*N54*O54*P54*Q54*R54","v":1},{"$f":"S54","v":1},{"$f":"IF(T54=1,A54,\"\")","v":"Захтјев за издавање накнадних локацијских услова"},"Захтјев за издавање накнадних локацијских услова"]
["Захтјев за легализацију објекта",1,1,1,1,1,1,1,1,1,1,1,1,1,1,1,1,1,1,1,"Захтјев за легализацију објекта","Захтјев за легализацију објекта"]
["Захтјев за утврђивање легалности објекта",1,1,1,1,1,1,1,1,1,1,1,1,1,1,1,1,1,1,1,"Захтјев за утврђивање легалности објекта","Захтјев за утврђивање легалности објекта"]
["Административна такса",1,1,1,1,1,1,1,1,1,1,1,1,1,1,1,1,1,1,1,"Административна такса","Административна такса"]
["Накнада за трошкове поступка",1,1,1,1,1,1,1,1,1,1,1,1,1,1,1,1,1,1,1,"Накнада за трошкове поступка","Накнада за трошкове поступка"]
["Копија катастарског плана",1,1,1,1,1,1,1,1,1,1,1,1,1,1,1,1,1,{"$f":"B59*C59*D59*E59*F59*G59*H59*I59*J59*K59*L59*M59*N59*O59*P59*Q59*R59","v":1},{"$f":"S59","v":1},{"$f":"IF(T59=1,A59,\"\")","v":"Копија катастарског плана"},"Копија катастарског плана"]
["Стручно мишљење и урбанистичко-технички услови",1,1,1,1,1,1,1,1,1,1,1,1,1,1,1,1,1,{"$f":"B60*C60*D60*E60*F60*G60*H60*I60*J60*K60*L60*M60*N60*O60*P60*Q60*R60","v":1},{"$f":"S60*G69","v":0},{"$f":"IF(T60=1,A60,\"\")","v":""},"Урбанистичко-технички услови"]
["Урбанистичко-технички услови",1,1,1,1,1,1,1,1,1,1,1,1,1,1,1,1,1,{"$f":"B61*C61*D61*E61*F61*G61*H61*I61*J61*K61*L61*M61*N61*O61*P61*Q61*R61","v":1},{"$f":"S61*F69","v":1},{"$f":"IF(T61=1,A61,\"\")","v":"Урбанистичко-технички услови"}]
["Путна сагласност локална",1,1,1,1,1,1,1,1,1,1,1,1,1,1,1,1,1,{"$f":"B62*C62*D62*E62*F62*G62*H62*I62*J62*K62*L62*M62*N62*O62*P62*Q62*R62","v":1},{"$f":"S62*L69","v":1},{"$f":"IF(T62=1,A62,\"\")","v":"Путна сагласност локална"},"Ovo još nisam povezao da mi sve ove saglasnosti ne trebaju kada je parcela u obuhvatu plana, odnosno uslov Plan / Da"]
["Путна сагласност републичка",1,1,1,1,1,1,1,1,1,1,1,1,1,1,1,1,1,1,{"$f":"S63*M69","v":0},""]
["Комунална сагласност на локацију",1,1,1,1,1,1,1,1,1,1,1,1,1,1,1,1,1,1,{"$f":"S64","v":1},"Комунална сагласност на локацију"]
["Електроенергетска сагласност на локацију",1,1,1,1,1,1,1,1,1,1,1,1,1,1,1,1,1,1,1,"Електроенергетска сагласност на локацију"]
["Телекомуникациона сагласност",1,1,1,1,1,1,1,1,1,1,1,1,1,1,1,1,1,1,1,"Телекомуникациона сагласност"]
["Противпожарна сагласност на локацију",1,1,1,1,1,1,1,1,1,1,1,1,1,1,1,1,1,1,{"$f":"S67*P69+S67*Q69+S67*R69","v":1},"Противпожарна сагласност на локацију"]
["Водне смјернице",1,1,1,1,1,1,1,1,1,1,1,1,1,1,1,1,1,1,{"$f":"S68*P69+S68*Q69+S68*R69","v":1},"Водне смјернице"]
[null,{"$f":"B53*B54*B55*B56*B57*B58*B60*B61*B59*B62*B64*B65*B66*B67*B68*B52","v":1},0,0,1,1,0,1,0,0,0,1,0,0,0,0,1,0]

{"sheet":"Tabela uslova","index":7,"n_rows":55,"n_cols":15,"rows_kept":55,"cut":false,"hidden":false,"merged":[]}
["Faza","Broj","Dokument","Izdavalac","Cena","Potreban dokument","Vlasnik","Izgrađen","Plan","Put","Tip objekta",null,null,null,"Odgovori"]
[1,1,"Захтјев за технички преглед и издавање одобрења за употребу објекта","Одјељење за просторно уређење",null,{"$f":"CheckAll($O$2:$O$6,G2:K2)","v":true},"*","*","*","*","*",null,null,"Vlasnik",{"$f":"'Улазни подаци'!D11","v":"Да"}]
[1,2,"Пројекат изведеног стања","Овлаштена пројектанстра кућа",100,{"$f":"CheckAll($O$2:$O$6,G3:K3)","v":true},"Да","Изграђен","*","*","*",null,null,"Izgrađen",{"$f":"'Улазни подаци'!D15","v":"Изграђен"}]
[1,3,"Завршни извјештај извођача радова","Овлаштена пројектанстра кућа",256,{"$f":"CheckAll($O$2:$O$6,G4:K4)","v":false},"Не","*","*","*","*",null,null,"Plan",{"$f":"'Улазни подаци'!D16","v":"Да"}]
[1,4,"Завршни извјештај надзорног органа","Овлаштена пројектанстра кућа",265,{"$f":"CheckAll($O$2:$O$6,G5:K5)","v":true},"*","*","*","gradski,Локални","*",null,null,"Put",{"$f":"'Улазни подаци'!D8","v":"Локални"}]
[1,5,"Потврда о извршеном геодетском снимању",null,25,{"$f":"CheckAll($O$2:$O$6,G6:K6)","v":true},"*","*","*","*","*",null,null,"Tip objekta",{"$f":"'Улазни подаци'!D17","v":"Стамбено-пословни"}]
[1,6,"Противпожарна сагласност на изведене мјере заштите од пожара","Полицијска управа Зворник",45,{"$f":"CheckAll($O$2:$O$6,G7:K7)","v":false},"*","*","*","*","Стамбени"]
[1,7,"Стручни налаз о прегледу и испитивању електроенергетских инсталација","Овлаштена пројектанстра кућа",98,{"$f":"CheckAll($O$2:$O$6,G8:K8)","v":true},"*","*","*","gradski,neki drugi,Локални","*"]
[1,8,"Сагласност Министарства здравља и социјалне заштите Републике Српске",null,null,{"$f":"CheckAll($O$2:$O$6,G9:K9)","v":false},"*","*","Не","*","*"]
[1,9,"Енергетски цертификат зграде","Овлаштена пројектанстра кућа",126,{"$f":"CheckAll($O$2:$O$6,G10:K10)","v":true},"*","*","*","*","*"]
[1,10,"Потврда о плаћеној накнади за прикључење на водоводну мрежу","АД \"Водовод и комуналије\"",365,{"$f":"CheckAll($O$2:$O$6,G11:K11)","v":true},"*","*","*","*","*"]
[1,11,"Административна такса","Градска управа града Зворника",20,{"$f":"CheckAll($O$2:$O$6,G12:K12)","v":true},"*","*","*","*","*"]
[2,1,"Захтјев за издавање одобрења за грађење","Одјељење за просторно уређење",null,{"$f":"CheckAll($O$2:$O$6,G13:K13)","v":true},"*","*","*","*","*"]
[2,2,"Посједовни лист","РУГИПП ПЈ Зворник (Катастар)",0,{"$f":"CheckAll($O$2:$O$6,G14:K14)","v":true},"*","*","*","*","*"]
[2,4,"Земљишнокњижни издатак","РУГИПП ПЈ Зворник (Катастар)",15,{"$f":"CheckAll($O$2:$O$6,G15:K15)","v":true},"*","*","*","*","*"]
[2,5,"Потврда о извршеној идентификацији парцела","РУГИПП ПЈ Зворник (Катастар)",15,{"$f":"CheckAll($O$2:$O$6,G16:K16)","v":true},"*","*","*","*","*"]
[2,6,"Лист непокретности","РУГИПП ПЈ Зворник (Катастар)",35,{"$f":"CheckAll($O$2:$O$6,G17:K17)","v":true},"*","*","*","*","*"]
[2,7,"Главни пројекат","Овлаштена пројектанстра кућа",6,{"$f":"CheckAll($O$2:$O$6,G18:K18)","v":true},"*","*","*","*","*"]
[2,8,"Ревизија главног пројекта","Овлаштена пројектанстра кућа",50,{"$f":"CheckAll($O$2:$O$6,G19:K19)","v":true},"*","*","*","*","*"]
[2,9,"Комунална сагласност на пројекат","АД \"Водовод и комуналије\"",0,{"$f":"CheckAll($O$2:$O$6,G20:K20)","v":true},"*","*","*","*","*"]
[2,10,"Електроенергетска сагласност на пројекат","Електродистрибуција РЈ Зворник",0,{"$f":"CheckAll($O$2:$O$6,G21:K21)","v":true},"*","*","*","*","*"]
[2,11,"Телекомуникациона сагласност на пројекат","Телекомуникације РС, АД Бања Лука",0,{"$f":"CheckAll($O$2:$O$6,G22:K22)","v":true},"*","*","*","*","*"]
[2,12,"Противпожарна сагласност на пројекат","Полицијска управа Зворник",0,{"$f":"CheckAll($O$2:$O$6,G23:K23)","v":true},"*","*","*","*","*"]
[2,13,"Еколошка сагласност на пројекат","Овлаштена пројектанстра кућа",0,{"$f":"CheckAll($O$2:$O$6,G24:K24)","v":true},"*","*","*","*","*"]
[2,14,"Водна сагласност на пројекат","ЈУ \"Воде Српске\"",5,{"$f":"CheckAll($O$2:$O$6,G25:K25)","v":true},"*","*","*","*","*"]
[2,15,"Сагласност Министарства здравља и социјалне заштите Републике Српске",null,null,{"$f":"CheckAll($O$2:$O$6,G26:K26)","v":true},"*","*","*","*","*"]
[2,null,"Путна сагласност",null,null,{"$f":"CheckAll($O$2:$O$6,G27:K27)","v":true},"*","*","*","*","*"]
[2,16,"Пољопривредна сагласност","Одјељење за пољопривреду",null,{"$f":"CheckAll($O$2:$O$6,G28:K28)","v":true},"*","*","*","*","*"]
[2,17,"Рјешење о висини накнаде на име ренте и уређења Г.Г.З.","Одјељење за привредно стамбено",25,{"$f":"CheckAll($O$2:$O$6,G29:K29)","v":true},"*","*","*","*","*"]
[2,12,"Административна такса","Градска управа града Зворника",20,{"$f":"CheckAll($O$2:$O$6,G30:K30)","v":true},"*","*","*","*","*"]
[3,1,"Захтјев за технички преглед и издавање одобрења за употребу објекта","Одјељење за просторно уређење",null,{"$f":"CheckAll($O$2:$O$6,G31:K31)","v":true},"*","*","*","*","*"]
[3,2,"Пројекат изведеног стања","Овлаштена пројектанстра кућа",100,{"$f":"CheckAll($O$2:$O$6,G32:K32)","v":true},"*","*","*","*","*"]
[3,3,"Завршни извјештај извођача радова","Овлаштена пројектанстра кућа",256,{"$f":"CheckAll($O$2:$O$6,G33:K33)","v":true},"*","*","*","*","*"]
[3,4,"Завршни извјештај надзорног органа","Овлаштена пројектанстра кућа",265,{"$f":"CheckAll($O$2:$O$6,G34:K34)","v":true},"*","*","*","*","*"]
[3,5,"Потврда о извршеном геодетском снимању",null,25,{"$f":"CheckAll($O$2:$O$6,G35:K35)","v":true},"*","*","*","*","*"]
[3,6,"Противпожарна сагласност на изведене мјере заштите од пожара","Полицијска управа Зворник",45,{"$f":"CheckAll($O$2:$O$6,G36:K36)","v":true},"*","*","*","*","*"]
[3,7,"Стручни налаз о прегледу и испитивању електроенергетских инсталација","Овлаштена пројектанстра кућа",98,{"$f":"CheckAll($O$2:$O$6,G37:K37)","v":true},"*","*","*","*","*"]
[3,8,"Сагласност Министарства здравља и социјалне заштите Републике Српске",null,null,{"$f":"CheckAll($O$2:$O$6,G38:K38)","v":true},"*","*","*","*","*"]
[3,9,"Енергетски цертификат зграде","Овлаштена пројектанстра кућа",126,{"$f":"CheckAll($O$2:$O$6,G39:K39)","v":true},"*","*","*","*","*"]
[3,10,"Потврда о плаћеној накнади за прикључење на водоводну мрежу","АД \"Водовод и комуналије\"",365,{"$f":"CheckAll($O$2:$O$6,G40:K40)","v":true},"*","*","*","*","*"]
[3,11,"Административна такса","Градска управа града Зворника",20,{"$f":"CheckAll($O$2:$O$6,G41:K41)","v":true},"*","*","*","*","*"]
[4,1,"Захтјев за издавање увјерења о непромењености локацијских услова","Одјељење за просторно уређење",null,{"$f":"CheckAll($O$2:$O$6,G42:K42)","v":true},"*","*","*","*","*"]
[4,2,"Захтјев за издавање накнадних локацијских услова","Одјељење за просторно уређење",null,{"$f":"CheckAll($O$2:$O$6,G43:K43)","v":true},"*","*","*","*","*"]
[4,3,"Захтјев за издавање накнадног одобрења за изграђени објекат","Одјељење за просторно уређење",null,{"$f":"CheckAll($O$2:$O$6,G44:K44)","v":true},"*","*","*","*","*"]
[4,4,"Захтјев за легализацију објекта","Одјељење за просторно уређење",null,{"$f":"CheckAll($O$2:$O$6,G45:K45)","v":true},"*","*","*","*","*"]
[4,5,"Захтјев за уклањање објекта","Одјељење за просторно уређење",null,{"$f":"CheckAll($O$2:$O$6,G46:K46)","v":true},"*","*","*","*","*"]
[4,6,"Захтјев за утврђивање легалности објекта","Одјељење за просторно уређење",null,{"$f":"CheckAll($O$2:$O$6,G47:K47)","v":true},"*","*","*","*","*"]
[4,7,"Захтјев за исколчавање објекта","Одјељење за просторно уређење",null,{"$f":"CheckAll($O$2:$O$6,G48:K48)","v":true},"*","*","*","*","*"]
[4,8,"Накнадни локацијски услови","Одјељење за просторно уређење",null,{"$f":"CheckAll($O$2:$O$6,G49:K49)","v":true},"*","*","*","*","*"]
[4,9,"Рјешење о издавању накнадне грађевинске дозволе","Одјељење за просторно уређење",null,{"$f":"CheckAll($O$2:$O$6,G50:K50)","v":true},"*","*","*","*","*"]
[4,10,"Рјешење о издавању накнадне употребне дозволе","Одјељење за просторно уређење",null,{"$f":"CheckAll($O$2:$O$6,G51:K51)","v":true},"*","*","*","*","*"]
[4,11,"Рјешење о уклањању објекта","Одјељење за просторно уређење",null,{"$f":"CheckAll($O$2:$O$6,G52:K52)","v":true},"*","*","*","*","*"]
[4,12,"Рјешење о утврђивању легалности објекта","Одјељење за просторно уређење",null,{"$f":"CheckAll($O$2:$O$6,G53:K53)","v":true},"*","*","*","*","*"]
[4,13,"Записник о исколчавању објекта","Одјељење за просторно уређење",null,{"$f":"CheckAll($O$2:$O$6,G54:K54)","v":true},"*","*","*","*","*"]
[4,14,"Извод из важећег просторног документа","Одјељење за просторно уређење",null,{"$f":"CheckAll($O$2:$O$6,G55:K55)","v":true},"*","*","*","*","*"]